Cogmind - Beta 14 @@@ ROGUE MODE // 2024.12.05 @ 15:30:58 Player: K.Ioz Result: Destroyed by H-55 Commando with Gauss Rifle Performance ------------- Evolutions (2) 1000 Regions Visited (5) 1000 Robots Destroyed (55) 275 Value Destroyed (1633) 1633 Prototype IDs (5) 100 Alien Tech Used (0) 0 Bonus (14) 14 TOTAL SCORE: 4022 Bonus ------- Follower Combat Kills 32 Friendly Fire -18 Cogmind --------- Core Integrity 0/550 Matter 300/300 Energy 100/100 System Corruption 1% Temperature Cool (0) Movement Core (50) Location -8/Materials Parts ------- > --- POWER (1) -------- (None) > --- PROPULSION (2) --- (None) > --- UTILITY (6) ------ (None) > --- WEAPON (2) ------- (None) > --- INVENTORY (5) ---- Aluminum Leg Aluminum Leg Disposable Heat Sink Beam Cannon Light Assault Rifle Peak State ------------ > --- POWER ------------ Cooled Ion Engine > --- PROPULSION ------- Light Treads Light Treads > --- UTILITY ---------- High-capacity Storage Unit Experimental Sensor Array Targeting Computer Target Analyzer > --- WEAPON ----------- Particle Cannon Advanced Beam Cannon > --- INVENTORY -------- Improved Ion Engine Improved Ion Engine Aluminum Leg Aluminum Leg Improved Heat Sink Disposable Heat Sink Small Storage Unit Medium Matter Pod Signal Interpreter Targeting Computer Target Analyzer Light Armor Plating Light Armor Plating Light Armor Plating Small Laser Beam Cannon Advanced Beam Cannon Light Assault Rifle Light Assault Rifle Grenade Launcher [Rating: 26] Favorites ----------- Power Cooled Ion Engine Engine Cooled Ion Engine Propulsion Aluminum Leg Treads Light Treads Leg Aluminum Leg Utility High-capacity Storage Unit Device Improved Heat Sink Storage High-capacity Storage Unit Processor Targeting Computer Protection Light Armor Plating Weapon Advanced Beam Cannon Energy Cannon Advanced Beam Cannon Ballistic Gun Heavy Assault Rifle Launcher Grenade Launcher Build | -11 -10 -10 -9 -9 -8 ------- Run | Yrd Mat Min Mat Min Mat Slots Evolved 4 | . . . 2 . 2 Power . | . . . . . . Propulsion . | . . . . . . Utility 4 | . . . 2 . 2 Weapon . | . . . . . . Parts Attached 47 | 6 8 9 19 5 . Power 4 | 1 1 1 1 . . Engine 4 | 1 1 1 1 . . Core . | . . . . . . Reactor . | . . . . . . Propulsion 13 | 2 2 2 6 1 . Treads 2 | . . . 2 . . Leg 11 | 2 2 2 4 1 . Wheel . | . . . . . . Hover . | . . . . . . Flight . | . . . . . . Utility 20 | 1 2 6 10 1 . Device 13 | . 2 5 5 1 . Storage 3 | 1 . 1 1 . . Processor 3 | . . . 3 . . Hackware . | . . . . . . Protection 1 | . . . 1 . . Artifact . | . . . . . . Weapon 10 | 2 3 . 2 3 . Energy Gun . | . . . . . . Energy Cannon 3 | . 1 . 1 1 . Ballistic Gun 6 | 2 2 . 1 1 . Ballistic Cannon . | . . . . . . Launcher 1 | . . . . 1 . Special Weapon . | . . . . . . Impact Weapon . | . . . . . . Slashing Weapon . | . . . . . . Piercing Weapon . | . . . . . . Special Melee Weapon . | . . . . . . Unidentified Prototypes 3 | . . 2 1 . . Parts Lost 9 | . 3 . 4 2 . Power 1 | . 1 . . . . Propulsion 2 | . 1 . 1 . . Utility 3 | . . . 2 1 . Weapon 3 | . 1 . 1 1 . Highest Loss Streak 2 | . 2 . 1 2 . To Critical Strikes . | . . . . . . Average Slot Usage (%) 94 | . 98 97 98 82 . Engine 11 | . 14 13 11 11 . Treads 6 | . . . 15 . . Leg 16 | . 28 28 6 22 . Device 9 | . 13 13 9 5 . Storage 11 | . 14 12 11 11 . Processor 11 | . . . 19 11 . Energy Cannon 12 | . 3 14 17 11 . Ballistic Gun 10 | . 24 14 4 10 . Peak Build Rating 26 | 6 11 21 26 23 . Average Rating 16 | 4 8 12 21 17 . On Entrance 11 | . 6 11 12 23 16 Naked Turns 76 | . . . . . 76 Heaviest Build 59 | 13 17 20 59 56 . Greatest Support 40 | 20 20 20 40 25 3 Greatest Overweight (x) 2 | . . . 2 2 . Average Overweight (x) . | . . . 1 2 . Largest Inventory Capacity 20 | 8 8 8 20 20 5 Average Capacity 15 | 7 8 7 19 20 5 Most Carried 20 | 6 8 8 20 20 5 Average Carried 14 | 2 7 7 17 19 5 Final Capacity 20 | 8 8 8 20 20 5 Final Carried 20 | 6 8 8 19 20 5 Class Distribution -------------------- 89% | Mutant 10% | Scavenger-Mutant Dominant Class ---------------- Mutant | -10/Materials Mutant | -10/Mines Mutant | -9/Materials Scavenger-Mutant | -9/Mines Mutant | -8/Materials Resources | -11 -10 -10 -9 -9 -8 ----------- Run | Yrd Mat Min Mat Min Mat Matter Collected 1174 | 114 556 182 237 85 . Remotely . | . . . . . . Salvage Created 1837 | . 342 131 1153 151 60 Parts 115 | . 32 4 71 6 2 Haulers Intercepted . | . . . . . . Recyclers Shooed . | . . . . . . Parts Field Recycled . | . . . . . . Retrieved Matter . | . . . . . . Parts Self-Destructed . | . . . . . . Prevented . | . . . . . . Kills | -11 -10 -10 -9 -9 -8 ------- Run | Yrd Mat Min Mat Min Mat Combat Hostiles Destroyed 47 | . 10 3 25 8 1 Melee 1 | . . . . . 1 Guns 13 | . 8 1 1 3 . Cannons 26 | . 2 1 22 1 . AOE 4 | . . . . 4 . Classes Destroyed 6 | . 3 . 3 . . Watcher 8 | . 3 . 5 . . Swarmer 13 | . 5 . 3 5 . Grunt 26 | . 5 3 15 3 . Brawler 1 | . . . 1 . . Duelist 1 | . . . 1 . . Sentry 6 | . . . 5 . 1 Best Kill Streak 4 | . 3 2 4 4 1 Combat Bots Only 4 | . 3 2 4 4 1 Max Kills in Single Turn 2 | . 1 1 1 2 1 Gunslinging . | . . . . . . Exploded 2 | . . . . 2 . Melee 1 | . . . . . 1 Uniques/NPCs Destroyed . | . . . . . . Combat | -11 -10 -10 -9 -9 -8 -------- Run | Yrd Mat Min Mat Min Mat Hostile Shots Fired 307 | . 80 16 123 39 49 Missed 93 | . 24 2 40 13 14 Damage Taken 2617 | . 579 199 1029 256 554 Core 864 | . 48 43 177 42 554 Absorbed by Shields . | . . . . . . Regen/Repaired (Parts) 117 | . . . 117 . . Core Remaining (%) 69 | 100 . 63 . 45 . Volleys Fired 134 | . 56 12 54 12 . Largest 2 | . 2 2 2 2 . Hottest 136 | . 88 88 136 98 . Shots Fired 268 | . 112 24 108 24 . Gun 145 | . 103 12 22 8 . Cannon 119 | . 9 12 86 12 . Launcher 4 | . . . . 4 . Special . | . . . . . . Kinetic 145 | . 103 12 22 8 . Thermal 119 | . 9 12 86 12 . Explosive 4 | . . . . 4 . Electromagnetic . | . . . . . . Robot Hit Streak 14 | . 8 6 14 10 . Robot Miss Streak 5 | . 5 4 3 3 . Penetration Max . | . . . . . . Secondary Targets 2 | . 2 . . . . Max Gunslinging Chain 1 | . 1 . . . . Shots Hit Robots 155 | . 54 15 75 11 . Core Hits 66 | . 19 6 30 10 1 Critical Kills 5 | . 1 1 3 . . Critical Parts Destroyed . | . . . . . . Critical Strikes 5 | . 1 1 3 . . Meltdown 3 | . . 1 2 . . Destroy 2 | . 1 . 1 . . Melee Attacks . | . . . . . . Impact . | . . . . . . Slashing . | . . . . . . Piercing . | . . . . . . Sneak Attacks . | . . . . . . Combat Hostiles . | . . . . . . Follow-up Attacks . | . . . . . . Damage Inflicted 2992 | . 733 202 1495 535 27 Guns 1030 | . 631 58 230 111 . Cannons 1594 | . 102 144 1265 83 . Explosions 300 | . . . . 300 . Melee . | . . . . . . Ramming 68 | . . . . 41 27 Kinetic 1030 | . 631 58 230 111 . Thermal 1594 | . 102 144 1265 83 . Explosive 300 | . . . . 300 . Electromagnetic . | . . . . . . Impact . | . . . . . . Slashing . | . . . . . . Piercing . | . . . . . . Highest Corruption 1 | . . . . . 1 Average Corruption 1 | . . . . . 1 Corruption Purged . | . . . . . . Corruption Blocked . | . . . . . . Overload Shots . | . . . . . . Overflow Damage 54 | . 2 . 10 42 . Projectiles 12 | . 2 . 10 . . Explosions 42 | . . . . 42 . Melee . | . . . . . . Knockbacks . | . . . . . . Impact . | . . . . . . Kinetic . | . . . . . . Secondary . | . . . . . . Self-Inflicted Damage 33 | . . . . 20 13 Shots 1 | . . . . 1 . Rammed 7 | . . . . . 7 Targets Rammed 16 | . . . . 9 7 Kicked 9 | . . . . 9 . Crushed . | . . . . . . Highest Temperature 312 | . 20 74 312 98 . Average Temperature 71 | . 15 29 80 40 . Received Heat Transfer 858 | . 210 111 444 48 45 Siege Activations . | . . . . . . Robots Corrupted . | . . . . . . Combat Hostiles . | . . . . . . Parts Fried . | . . . . . . Impact Corruptions . | . . . . . . Robots Melted 3 | . . 1 2 . . Combat Hostiles 3 | . . 1 2 . . Parts Melted 10 | . . 1 9 . . Heat Transferred 2812 | . 185 259 2220 148 . Parts Sabotaged . | . . . . . . Parts Stolen . | . . . . . . Parts Stripped . | . . . . . . Power Chain Reactions . | . . . . . . Alert | -11 -10 -10 -9 -9 -8 ------- Run | Yrd Mat Min Mat Min Mat Peak Influence 322 | . 173 75 322 150 45 Initial 100 | . . 10 . 100 . Average 105 | . 45 27 188 46 30 Maximum Alert Level 1 | . . . 1 . . Low Security (%) 81 | 100 100 100 59 100 100 Level 1 18 | . . . 40 . . Level 2 . | . . . . . . Level 3 . | . . . . . . Level 4 . | . . . . . . Level 5 . | . . . . . . High Security . | . . . . . . Max Security . | . . . . . . Squads Dispatched 5 | . 2 . 1 . 2 Investigation 2 | . 1 . . . 1 Extermination . | . . . . . . Reinforcement 3 | . 1 . 1 . 1 Assault . | . . . . . . Garrison . | . . . . . . Intercept . | . . . . . . Searches Triggered . | . . . . . . Construction Impeded . | . . . . . . Haulers Reinforced . | . . . . . . Active Scanning Responses . | . . . . . . Cargo Convoy Interrupts . | . . . . . . Stealth | -11 -10 -10 -9 -9 -8 --------- Run | Yrd Mat Min Mat Min Mat Distress Signals 2 | . . . 1 . 1 Communications Jammed . | . . . . . . Distress Signals . | . . . . . . Times Spotted 81 | . 23 4 42 9 3 Peak Tracking Total 4 | . 4 2 4 4 4 Tactical Retreats 7 | . 1 . 6 . . Traps | -11 -10 -10 -9 -9 -8 ------- Run | Yrd Mat Min Mat Min Mat Traps Triggered 1 | . . . . . 1 Indirectly . | . . . . . . Trap Hack Attempts . | . . . . . . Triggered . | . . . . . . Disarmed . | . . . . . . Reprogrammed . | . . . . . . Reused . | . . . . . . Traps Extracted . | . . . . . . Installed . | . . . . . . Triggered . | . . . . . . Machines | -11 -10 -10 -9 -9 -8 ---------- Run | Yrd Mat Min Mat Min Mat Machines Disabled 6 | . 1 . 4 1 . Max in Single Turn 1 | . 1 . 1 1 . Machines Repaired . | . . . . . . Machines Dismantled . | . . . . . . Machines Sabotaged . | . . . . . . Overloaded Fab Kills . | . . . . . . Hacking | -11 -10 -10 -9 -9 -8 --------- Run | Yrd Mat Min Mat Min Mat Machines Accessed 18 | . 8 1 8 1 . Terminals 14 | . 7 . 6 1 . Fabricators . | . . . . . . Repair Stations 1 | . . . 1 . . Recycling Units 2 | . 1 . 1 . . Scanalyzers . | . . . . . . Garrison Access . | . . . . . . Total Hacks 49 | . 25 1 19 4 . Successful 22 | . 9 1 10 2 . Failed 26 | . 15 . 9 2 . Catastrophic 2 | . 1 . . 1 . Database Lockouts 1 | . 1 . . . . Manual 43 | . 21 . 18 4 . Terminals 44 | . 24 . 16 4 . Fabricators . | . . . . . . Repair Stations 2 | . . . 2 . . Recycling Units 2 | . 1 . 1 . . Scanalyzers . | . . . . . . Garrison Access . | . . . . . . Terminal Hacks 9 | . 4 1 3 1 . Part Schematic 2 | . 2 . . . . Robot Analysis 2 | . . . 2 . . Prototype ID Bank 1 | . 1 . . . . Open Door 1 | . . 1 . . . Unreport Threat 2 | . . . 1 1 . Locate Traps 1 | . 1 . . . . Fabricator Hacks . | . . . . . . Repair Station Hacks 2 | . . . 2 . . Scan Component 1 | . . . 1 . . Repair 1 | . . . 1 . . Recycling Unit Hacks 1 | . 1 . . . . Report Inventory 1 | . 1 . . . . Scanalyzer . | . . . . . . Garrison Access Hacks . | . . . . . . Unauthorized Hacks 10 | . 4 . 5 1 . Terminals 10 | . 4 . 5 1 . Skim 10 | . 4 . 5 1 . Fabricators . | . . . . . . Repair Stations . | . . . . . . Recycling Units . | . . . . . . Scanalyzers . | . . . . . . Garrison Access . | . . . . . . Data Cores Recovered . | . . . . . . Used . | . . . . . . Hacking Detections 13 | . 6 . 6 1 . Full Trace Events 1 | . 1 . . . . Feedback Events . | . . . . . . Feedback Blocked . | . . . . . . Robot Schematics Acquired . | . . . . . . Robots Built . | . . . . . . Authchips . | . . . . . . Time . | . . . . . . Total Robot Build Rating . | . . . . . . Part Schematics Acquired 1 | . 1 . . . . Parts Built . | . . . . . . Authchips . | . . . . . . Time . | . . . . . . Total Part Build Rating . | . . . . . . Parts Repaired 1 | . . . 1 . . Time 26 | . . . 26 . . Parts Recycled . | . . . . . . Recycled Matter . | . . . . . . Retrieved Matter . | . . . . . . Retrieved Components . | . . . . . . Parts Scanalyzed . | . . . . . . Part Schematics Acquired . | . . . . . . Parts Damaged . | . . . . . . Bothacking | -11 -10 -10 -9 -9 -8 ------------ Run | Yrd Mat Min Mat Min Mat Used RIF Installer . | . . . . . . Robots Hacked . | . . . . . . Non-combat . | . . . . . . Combat . | . . . . . . Robot Hacks Applied . | . . . . . . Relay Couplers Released . | . . . . . . Fabnet Peak Effective % . | . . . . . . Robots Rewired . | . . . . . . Allies Hacked . | . . . . . . Hacks Repelled . | . . . . . . Allies | -11 -10 -10 -9 -9 -8 -------- Run | Yrd Mat Min Mat Min Mat Total Allies 3 | . . 1 . 2 . Largest Group 2 | . . 1 . 2 . Highest-Rated Group 44 | . . 31 . 44 . Highest-Rated Ally 31 | . . 31 . 31 . Total Orders 1 | . . 1 . . . ROAM 1 | . . 1 . . . Ally Attacks 11 | . . 8 . 3 . Total Damage 64 | . . 21 . 43 . Kills 2 | . . 1 . 1 . Allies Corrupted . | . . . . . . Allies Melted . | . . . . . . Intel | -11 -10 -10 -9 -9 -8 ------- Run | Yrd Mat Min Mat Min Mat Robot Analysis Total 2 | . . . 2 . . Derelict Logs Recovered 1 | . . 1 . . . Drone Launches 16 | . . 16 . . . Drone Recoveries . | . . . . . . Exploration | -11 -10 -10 -9 -9 -8 ------------- Run | Yrd Mat Min Mat Min Mat Turns Passed 6560 | 98 1099 1090 2937 1260 76 Spaces Moved 3059 | 71 668 727 1084 455 54 Core 61 | 7 . . . . 54 Treads 767 | . . . 767 . . Legs 2231 | 64 668 727 317 455 . Wheels . | . . . . . . Hover . | . . . . . . Flight . | . . . . . . Fastest Speed 50 | 50 120 120 120 260 50 Average Speed 180 | 113 120 120 235 260 50 Slowest Speed 260 | 120 120 120 260 260 50 Overloaded Moves . | . . . . . . Propulsion Burnouts . | . . . . . . Robots Hopped . | . . . . . . Cave-ins Triggered . | . . . . . . Exploration Rate (%) 58 | 5 94 99 77 70 5 Regions Visited 5 Branch Regions 2 Pre-discovered Areas 1 | . . . 1 . . Known Exits Taken 2 | . . . 1 1 . Unknown Exits Taken 3 | 1 1 1 . . . Scrap Searched 2 | . . 2 . . . Spaces Dug . | . . . . . . Terrain Destroyed 38 | . . . . 38 . Melee . | . . . . . . Projectile 1 | . . . . 1 . AOE 37 | . . . . 37 . Terrain Rammed . | . . . . . . Walls Destroyed . | . . . . . . Machines Disabled . | . . . . . . Actions | -11 -10 -10 -9 -9 -8 --------- Run | Yrd Mat Min Mat Min Mat Total 3828 | 85 857 926 1364 493 103 Wait 475 | 3 102 146 170 12 42 Move 3054 | 70 667 726 1083 454 54 Hop . | . . . . . . Pick Up 51 | 6 13 8 24 . . Fast Attach 14 | 6 2 3 2 1 . Attach 18 | . 3 3 11 1 . Detach 6 | . . 1 4 1 . Swap 15 | . 3 3 6 3 . Drop 31 | . 11 10 10 . . Fire 134 | . 56 12 54 12 . Melee . | . . . . . . Ram 7 | . . . . . 7 Kick 9 | . . . . 9 . Crush . | . . . . . . Escape Stasis . | . . . . . . Rewire 14 | . . 14 . . . Trap . | . . . . . . Miscellaneous . | . . . . . . Route ------- -11/Scrapyard -10/Materials (discovered 5 exits: *Mat x3 / *Min x2) -10/Mines (discovered 4 exits: *Mat x2 / [*Exi] / [*Sub]) -9/Materials (discovered 5 exits: *Mat x3 / *Min x2) -9/Mines -8/Materials (discovered 1 exit: Sto) History --------- Turn | Location | Event 3 | -11/Scrapyard | Discovered new exit (range 15) 99 | -11/Scrapyard | Entered Materials 186 | -10/Materials | Discovered new exit (range 11) 222 | -10/Materials | Discovered new exit (range 11) 303 | -10/Materials | Build established: Mutant 314 | -10/Materials | Discovered new exit (range 6) 465 | -10/Materials | Discovered new exit (range 16) 719 | -10/Materials | Discovered new exit (range 11) 922 | -10/Materials | Central database locked down 1198 | -10/Materials | Entered Mines 1245 | -10/Mines | Found the Drone Emporium 1251 | -10/Mines | Found Prototype Device 1260 | -10/Mines | Identified Bomb Drone Bay 1295 | -10/Mines | Discovered new exit (range 19) 1306 | -10/Mines | Discovered new exit (range 56) 1563 | -10/Mines | Received a Rocket Launcher from a helpful Derelict 1696 | -10/Mines | Learned Materials garrison access intel 1752 | -10/Mines | Discovered new exit (range 6) 1800 | -10/Mines | Received a Mining Laser from a helpful Derelict 2084 | -10/Mines | Found a damaged Exp. Sensor Array with a note attached 2087 | -10/Mines | Found Prototype Device 2087 | -10/Mines | Identified Exp. Sensor Array 2108 | -10/Mines | Deemed a non-threat by the Exiles lab entrance 2108 | -10/Mines | Discovered new exit (range 5) 2288 | -10/Mines | Entered Materials 2288 | -9/Materials | Evolved 2 slots: Utility x2 2556 | -9/Materials | Discovered new exit (range 3) 3974 | -9/Materials | Discovered new exit (range 8) 3998 | -9/Materials | Identified exit to Materials 4916 | -9/Materials | Discovered exit to Materials (range 11) 4926 | -9/Materials | Learned location of 1 exit from Storage 5003 | -9/Materials | Identified exit to Mines 5074 | -9/Materials | Repaired Lgt. Treads 5127 | -9/Materials | Learned location of Storage (-8) 5203 | -9/Materials | Loaded intel: 12 terminal locations 5224 | -9/Materials | Learned 2 Storage zone layouts 5225 | -9/Materials | Entered Mines 5245 | -9/Mines | Discovered exit to Materials (range 10) 5687 | -9/Mines | Core integrity fell below 50% 5744 | -9/Mines | Build established: Scavenger-Mutant 6413 | -9/Mines | Build established: Mutant 6485 | -9/Mines | Entered Materials 6485 | -8/Materials | Evolved 2 slots: Utility x2 6485 | -8/Materials | Released all parts (7) 6486 | -8/Materials | Identified exit to Storage 6487 | -8/Materials | Loaded intel: 1 garrison access location 6529 | -8/Materials | Core integrity fell below 50% 6550 | -8/Materials | Core integrity fell below 20% 6561 | -8/Materials | Destroyed by H-55 Commando with Gauss Rifle Last Messages --------------- 06515_ Penetrated by Slug. 06515_ Slammed into Y-45 Defender. 06515_ Y-45 Defender destroyed. 06516_ U-05 Engineer lays Concrete. 06522_ T-07 Excavator is excavating. 06522_ Penetrated by Slug. 06522_ U-05 Engineer lays Concrete. 06531_ U-05 Engineer suffers critical hit (Destroy). 06532_ U-05 Engineer builds a Wall. 06533_ U-05 Engineer lays Concrete. 06534_ Penetrated by Slug. 06536_ U-05 Engineer lays Concrete. 06537_ Penetrated by Slug. 06538_ U-05 Engineer builds a Wall. 06546_ Slug penetrates U-05 Engineer. 06549_ Penetrated by Slug. 06552_ U-05 Engineer lays Concrete. 06555_ Penetrated by Slug. 06558_ U-05 Engineer destroyed. Map ----- +----------------------------------------------------+ | ??????????????????????????????# #?????????? | | ??????????????????????????????# #?????????? | | ??????????????????????????????# #?????????? | | ??????????????????????????????+ #?????????? | | ??????????????????????????????# #?????????? | | ??????????????????????????????# #?????????? | | ??????????????##???????#+????## ##????????? | | ??????????????? ##### ##### #????????? | | ????????????????? #????????? | | ??????????????????????# #????????? | | ???????????????????##?# #????????? | | ???????????????????? ?# #### #????????? | | ????????????????????? # #??#######????????? | | ????????????????????? # #?????????????????? | | ??????????????????????+ #?????????????????? | | ??????????????????????# #?????????????????? | | ??????????????????????# #?????????????????? | | ?????????????????????## = ##????????????????? | | ?????????????????????# !%|!#????????????????? | | ?????????????????????# !== #????????????????? | | ?????????????????????+ %%!#????????????????? | | ?????????????????????# %%% #????????????????? | | ?????????????????????# %% #????????????????? | | ?????????????????????## ##????????????????? | | ??????????????????????# #?????????????????? | | ??????????????????????# @#?????????????????? | | ??????????????????????# #???????????????? | | ??????????????????????# h # ??????????????? | | ??????????????????????# #####?????????????? | | ??????????????????????# #?????????????????? | | ?????????????????????? ?????????????????? | | ????????????????????? ?????????????????? | | ????????????????????? T #????????????????? | | ???????????????????? #????????????????? | | ???????????????????### #????????????????? | | ?????????????????????#######????????????????? | | ????????????????????????????????????????????? | | ????????????????????????????????????????????? | | ????????????????????????????????????????????? | | ????????????????????????????????????????????? | | ????????????????????????????????????????????? | | ????????????????????????????????????????????? | | ????????????????????????????????????????????? | | ????????????????????????????????????????????? | | ????????????????????????????????????????????? | | ????????????????????????????????????????????? | | ????????????????????????????????????????????? | | ????????????????????????????????????????????? | | ????????????????????????????????????????????? | | ????????????????????????????????????????????? | +----------------------------------------------------+ Best States ------------- Heat Dissipation 42 Coolant Potential 50 Energy Generation 14 Energy Capacity 280 Matter Stores 300 Matter Capacity 300 Sight Range 16 Robot Scan Range 20 Terrain Scan Density 10 Armor Coverage 150 Evasion (%) 55 Targeting Accuracy 5 Target Analysis 5 Recoil Reduction 2 Item Schematics ----------------- Hcp. Storage Unit | -10/Materials | Hacked Robot Schematics ------------------ None Fabricated ------------ Nothing Alien Tech Used ----------------- None Achievements -------------- None Challenges ------------ None Game ------ Seed CatalystDefenseAutohacker Manual? 0 Play Time 00:58:47 Cumulative 193.4 hours Start 2024.12.05 @ 12:18:50 End 2024.12.05 @ 15:30:58 Sessions 8 Manual Loads 0 Difficulty Rogue Special Mode None Game No. 147 Rogue 114 Adventurer 0 Explorer 33 Win Type - Total 4 Types 4/0/0/0/0/0/0/0/0 Lore% 36 Gallery% 59 Achievement% 58 Wizard Run 0 Options --------- Layout 1 ASCII 0 Keyboard 1 Movement Vi Keybinds 0 Fullscreen 1 Font 24/Cog Map View 50x35 Zoom Use 0% Tactical HUD 1 Map Filters NONE Filters LOW_CONTRAST(47,30,31) Steam 1 RUN: bbe62a89-eb53-4fe7-a980-aae4a08469b8